{"text_format":"1","workbook":"xlsx","n_sheets":7,"sheets":["Data","GUIDE","FORM","INDEX","SPS8113","RSC8002","SPS8310"],"not_rendered":{"charts":0,"images":5,"macros":1,"external_links":1,"defined_names":8,"comments":0,"pivot_tables":0},"unopened":[],"bounds":{"document_bytes":16777216,"sheet_cells":100000,"rows_first":2000,"rows_last":500,"rows_between":2000,"halvings":0,"cell_chars":16384,"cell_head_chars":4096},"cells_cut":0,"cells_raw":0,"read":"whole","date_system":"1900"}

{"sheet":"Data","index":0,"n_rows":29,"n_cols":5,"rows_kept":29,"cut":false,"hidden":true,"merged":[]}
["Tick","Semester","Year","Skills"]
["√",1,1,"Knowledge and understanding   ","Cognitive skills  "]
[null,2,2,"Cognitive skills  ","Interpersonal skills"]
[null,3,3,"Practical skills","Communication skills"]
[null,null,4,"Interpersonal skills","Digital skills  "]
[null,null,5,"Communication skills","Numeracy skills  "]
[null,null,6,"Digital skills  ","Leadership, autonomy and responsibility  "]
[null,null,null,"Numeracy skills  ","Personal skills  "]
[null,null,null,"Leadership, autonomy and responsibility  ","Entrepreneurial skills  "]
[null,null,null,"Personal skills  ","Ethics and professionalism. "]
[null,null,null,"Entrepreneurial skills  "]
[null,null,null,"Ethics and professionalism. "]
[]
[]
[]
[]
[]
[]
[null,null,1,"Knowledge and understanding   "]
[null,null,2,"Cognitive skills  "]
[null,null,3,"Practical skills"]
[null,null,4,"Interpersonal skills"]
[null,null,5,"Communication skills"]
[null,null,6,"Digital skills  "]
[null,null,7,"Numeracy skills  "]
[null,null,8,"Leadership, autonomy and responsibility  "]
[null,null,9,"Personal skills  "]
[null,null,10,"Entrepreneurial skills  "]
[null,null,11,"Ethics and professionalism. "]

{"sheet":"GUIDE","index":1,"n_rows":28,"n_cols":6,"rows_kept":28,"cut":false,"hidden":false,"merged":[[32,8,32,9],[33,8,33,9],[34,8,34,9],[3,8,3,9],[4,8,4,9],[5,8,5,9],[23,8,23,9],[29,8,29,9],[30,8,30,9],[7,2,8,18]]}
[]
[]
[null,null,null,null,null,"Summary of Course Information Template "]
[null,null,null,null,null,"(Table4 v2.0 June 2020)"]
[]
[]
[]
[null,null,"Please follow the instructions below in sequential order to provide the information on the courses in the programme. Following are the sequential instructions to fill in course information of the programme:-"]
[]
[]
[null,null,"1-","To create a new course information, click 'FORM' worksheet."]
[]
[null,null,"2-","Fill in the required information for the course. Course code is a mandatory field and it is unique. "]
[null,null,null,"Data for cells in dark green color (                ) will be generated automatically."]
[]
[null,null,"3-","Once completed, click 'Copy Sheet' button that available on the top right corner of the form."]
[null,null,null,"(A new worksheet will be replicated with a default name which is the course code)"]
[]
[null,null,"4-","To provide information for the following course, return to the 'FORM' worksheet."]
[null,null,null,"You can create a new couse by filling all new information by repeating steps 1 to 3 OR just edit the relevant fields and repeat step 3. "]
[null,null,null,"Click ‘Clear Form’ to fill in new information."]
[]
[null,null,"5-","Once all courses have been created, click 'Update  Index' button on the top right corner of the FORM worksheet."]
[]
[null,null,"6-","Go to 'INDEX' worksheet to see the summary index for all the courses of the programme."]
[null,null,null,"(All courses/ worksheet names will be populated together with % SLT for ODL courses)"]
[]
[null,null,"Note: This Table 4 and its SLT calculation are designed for home grown programme only."]

{"sheet":"FORM","index":2,"n_rows":114,"n_cols":35,"rows_kept":114,"cut":false,"hidden":false,"merged":[[67,4,67,9],[72,20,72,22],[41,3,41,25],[44,2,44,7],[26,17,27,21],[26,22,27,25],[26,5,26,16],[28,17,28,21],[29,17,29,21],[30,17,30,21],[36,17,36,21],[32,22,32,25],[62,20,62,22],[62,23,62,25],[49,8,50,8],[66,4,66,9],[65,23,65,25],[66,10,66,11],[66,23,66,25],[65,10,65,11],[57,16,57,19],[31,22,31,25],[28,22,28,25],[29,22,29,25],[94,3,95,3],[73,10,73,11],[73,20,73,22],[73,23,73,25],[72,4,72,9],[64,4,64,9],[33,17,33,21],[34,17,34,21],[35,17,35,21],[33,22,33,25],[34,22,34,25],[35,22,35,25],[77,10,77,11],[78,10,78,11],[81,4,81,9],[80,12,80,15],[49,9,50,25],[48,8,48,25],[94,23,95,25],[82,3,82,22],[83,20,84,22],[81,16,81,19],[85,20,85,22],[94,4,95,22],[60,10,60,11],[30,22,30,25],[33,3,33,4],[21,5,21,6],[31,17,31,21],[32,17,32,21],[19,7,19,26],[22,5,22,6],[22,7,22,26],[59,4,59,9],[15,2,22,4],[15,5,15,6],[20,5,20,6],[55,3,58,9],[55,10,58,11],[55,12,55,22],[55,23,58,25],[57,12,57,15],[53,2,53,26],[59,10,59,11],[59,20,59,22],[59,23,59,25],[72,23,72,25],[82,23,82,25],[74,23,74,25],[74,3,74,22],[15,7,15,26],[16,5,16,6],[16,7,16,26],[17,5,17,6],[17,7,17,26],[18,5,18,6],[18,7,18,26],[61,10,61,11],[45,2,46,7],[61,20,61,22],[61,23,61,25],[45,9,45,25],[46,9,46,25],[47,9,47,25],[32,3,32,4],[31,3,31,4],[29,3,29,4],[19,5,19,6],[20,7,20,26],[21,7,21,26],[3,2,3,4],[3,5,3,27],[4,2,4,4],[4,5,4,27],[5,2,5,4],[5,5,5,27],[7,2,7,4],[7,5,7,27],[12,2,12,4],[12,5,12,7],[6,2,6,4],[6,5,6,11],[13,2,13,4],[13,5,13,27],[8,1,10,1],[8,2,10,4],[11,2,11,4],[11,5,11,7],[11,9,11,10],[11,12,11,27],[8,6,8,27],[9,6,9,27],[10,6,10,27],[75,20,76,22],[79,4,79,9],[77,12,77,15],[77,16,77,19],[72,10,72,11],[34,3,34,4],[35,3,35,4],[73,4,73,9],[78,12,78,15],[78,16,78,19],[79,12,79,15],[79,16,79,19],[75,3,76,9],[75,10,76,11],[76,12,76,15],[76,16,76,19],[77,4,77,9],[78,4,78,9],[75,12,75,19],[65,20,65,22],[63,4,63,9],[60,4,60,9],[61,4,61,9],[52,2,52,27],[71,23,71,25],[68,20,68,22],[24,2,24,27],[26,3,27,4],[56,12,56,19],[56,20,58,22],[42,3,42,25],[36,3,38,4],[40,3,40,25],[28,3,28,4],[30,3,30,4],[60,20,60,22],[60,23,60,25],[64,23,64,25],[62,10,62,11],[64,20,64,22],[67,10,67,11],[67,20,67,22],[67,23,67,25],[68,23,68,25],[69,23,69,25],[70,23,70,25],[63,23,63,25],[70,4,70,9],[83,3,84,9],[83,10,84,11],[84,12,84,15],[84,16,84,19],[83,12,83,19],[85,12,85,15],[85,16,85,19],[86,16,86,19],[79,10,79,11],[86,4,86,9],[80,16,80,19],[81,12,81,15],[86,12,86,15],[80,4,80,9],[80,10,80,11],[81,10,81,11],[103,3,103,25],[104,3,104,25],[97,23,97,25],[98,23,98,25],[99,23,99,25],[96,4,96,22],[97,4,97,22],[98,4,98,22],[99,4,99,22],[96,23,96,25],[101,3,101,22],[101,23,101,25],[114,1,114,27],[105,3,105,22],[106,1,107,1],[106,2,107,9],[106,10,107,27],[108,1,109,1],[108,2,109,9],[108,10,109,27],[110,1,111,1],[110,2,111,9],[110,10,111,27],[113,2,113,27],[92,3,92,22],[92,23,92,25],[93,3,93,22],[87,20,87,22],[87,16,87,19],[85,4,85,9],[87,4,87,9],[88,20,88,22],[89,20,89,22],[89,4,89,9],[93,23,93,25],[87,12,87,15],[90,23,90,25],[90,3,90,22],[85,10,85,11],[86,10,86,11],[87,10,87,11],[88,10,88,11],[89,10,89,11],[88,12,88,15],[88,16,88,19],[89,12,89,15],[89,16,89,19],[88,4,88,9],[80,20,80,22],[81,20,81,22],[77,20,77,22],[78,20,78,22],[79,20,79,22],[86,20,86,22],[71,4,71,9],[65,4,65,9],[37,17,37,21],[38,17,38,21],[69,10,69,11],[69,20,69,22],[70,10,70,11],[70,20,70,22],[68,10,68,11],[71,20,71,22],[71,10,71,11],[63,10,63,11],[63,20,63,22],[64,10,64,11],[66,20,66,22],[62,4,62,9],[68,4,68,9],[69,4,69,9]]}
[]
[null,"Table 4: Summary of Course Information"]
[null,null,null,null,null,null,null,null,null,null,null,null,null,null,null,null,null,null,null,null,null,null,null,null,null,null,null,null,null,null,null,null,null,null,"√"]
[]
[null,1,"Course Name:",null,null,null,null,null,null,null,null,null,null,null,null,null,null,null,null,null,null,null,null,null,null,null,null,null,null,null,null,null,null,null,"Semester"]
[null,null,"Course Code:",null,null,null,null,null,null,null,null,null,null,null,null,null,null,null,null,null,null,null,null,null,null,null,null,null,null,null,null,null,null,null,1]
[null,null,"Course Classification:",null,null,null,null,null,null,null,null,null,null,null,null,null,null,null,null,null,null,null,null,null,null,null,null,null,null,null,null,null,null,null,2]
[null,2,"Synopsis:",null,null,null,null,null,null,null,null,null,null,null,null,null,null,null,null,null,null,null,null,null,null,null,null,null,null,null,null,null,null,null,3]
[null,{"$f":"B8+1","v":3},"Name(s) of Academic Staff:",null,null,1]
[null,null,null,null,null,2,null,null,null,null,null,null,null,null,null,null,null,null,null,null,null,null,null,null,null,null,null,null,null,null,null,null,null,null,"Year Offered"]
[null,null,null,null,null,3,null,null,null,null,null,null,null,null,null,null,null,null,null,null,null,null,null,null,null,null,null,null,null,null,null,null,null,null,1]
[null,{"$f":"B9+1","v":4},"Semester and Year offered:",null,null,"Year Offered",null,null,null,"Semester",null,null,"Remarks:",null,null,null,null,null,null,null,null,null,null,null,null,null,null,null,null,null,null,null,null,null,2]
[null,{"$f":"B12+1","v":5},"Credit Value:",null,null,{"$f":"IF(X102 =\"√\",INT(X94/80),INT(X94/40))","v":0},null,null,null,null,null,null,null,null,null,null,null,null,null,null,null,null,null,null,null,null,null,null,null,null,null,null,null,null,3]
[null,6,"Pre-requisite/ co-requisite (if any):",null,null,null,null,null,null,null,null,null,null,null,null,null,null,null,null,null,null,null,null,null,null,null,null,null,null,null,null,null,null,null,4]
[null,null,null,null,null,null,null,null,null,null,null,null,null,null,null,null,null,null,null,null,null,null,null,null,null,null,null,null,null,null,null,null,null,null,5]
[null,7,"Course Learning Outcomes (CLO)",null,null,"CLO1",null,null,null,null,null,null,null,null,null,null,null,null,null,null,null,null,null,null,null,null,null,null,null,null,null,null,null,null,6]
[null,null,null,null,null,"CLO2",null,null,null,null,null,null,null,null,null,null,null,null,null,null,null,null,null,null,null,null,null,null,null,null,null,null,null,null,7]
[null,null,null,null,null,"CLO3",null,null,null,null,null,null,null,null,null,null,null,null,null,null,null,null,null,null,null,null,null,null,null,null,null,null,null,null,8]
[]
[null,null,null,null,null,null,null,null,null,null,null,null,null,null,null,null,null,null,null,null,null,null,null,null,null,null,null,null,null,null,null,null,null,null,"Compulsory"]
[null,null,null,null,null,null,null,null,null,null,null,null,null,null,null,null,null,null,null,null,null,null,null,null,null,null,null,null,null,null,null,null,null,null,"Major (core) "]
[null,null,null,null,null,null,null,null,null,null,null,null,null,null,null,null,null,null,null,null,null,null,null,null,null,null,null,null,null,null,null,null,null,null,"Minor"]
[null,null,null,null,null,null,null,null,null,null,null,null,null,null,null,null,null,null,null,null,null,null,null,null,null,null,null,null,null,null,null,null,null,null,"Elective (core) "]
[null,null,null,null,null,null,null,null,null,null,null,null,null,null,null,null,null,null,null,null,null,null,null,null,null,null,null,null,null,null,null,null,null,null,"Elective (open/free)"]
[null,8,"Mapping of the Course Learning Outcomes to the Programme Learning Outcomes, Teaching Methods and Assessment Methods"]
[]
[null,null,null,"Course Learning Outcomes",null,"Programme Learning Outcomes (PLO)",null,null,null,null,null,null,null,null,null,null,null,"Teaching Methods",null,null,null,null,"Assessment Methods"]
[null,null,null,null,null,"PLO 1","PLO 2","PLO 3","PLO 4","PLO 5","PLO 6","PLO 7","PLO 8","PLO 9","PLO 10","PLO 11"]
[null,null,null,{"$f":"IF(ISBLANK(F16),\"\",F16)","v":"CLO1"}]
[null,null,null,{"$f":"IF(ISBLANK(F17),\"\",F17)","v":"CLO2"}]
[null,null,null,"CLO3"]
[null,null,null,{"$f":"IF(ISBLANK(F19),\"\",F19)","v":""}]
[null,null,null,{"$f":"IF(ISBLANK(F20),\"\",F20)","v":""}]
[null,null,null,""]
[null,null,null,""]
[null,null,null,""]
[null,null,null,"Mapping with MQF Cluster of Learning Outcomes",null,null,null,null,null,null,null,null,null,null,null,null,null,null,null,null,null,null,null,null,null,null,null,null,null,null,null,null,null,null,"Cognitive skills  "]
[null,null,null,null,null,null,null,null,null,null,null,null,null,null,null,null,null,null,null,null,null,null,null,null,null,null,null,null,null,null,null,null,null,null,"Interpersonal skills"]
[null,null,null,null,null,null,null,null,null,null,null,null,null,null,null,null,null,null,null,null,null,null,null,null,null,null,null,null,null,null,null,null,null,null,"Communication Skills"]
[null,null,null,null,null,null,null,null,null,null,null,null,null,null,null,null,null,null,null,null,null,null,null,null,null,null,null,null,null,null,null,null,null,null,"Digital Skills"]
[null,null,null,"Indicate the primary causal link between the CLO and PLO by ticking  '√' in the appropriate box.",null,null,null,null,null,null,null,null,null,null,null,null,null,null,null,null,null,null,null,null,null,null,null,null,null,null,null,null,null,null,"Numeracy Skills"]
[null,null,null,"C1 = Knowledge & Understanding, C2 = Cognitive Skills, C3A = Practical Skills, C3B = Interpersonal Skills, C3C = Communication Skills, C3D = Digital Skills,",null,null,null,null,null,null,null,null,null,null,null,null,null,null,null,null,null,null,null,null,null,null,null,null,null,null,null,null,null,null,"Leadership, Autonomy and Responsibility"]
[null,null,null,"C3E = Numeracy Skills, C3F = Leadership, Autonomy & Responsibility, C4A = Personal Skills, C4B = Entrepreneurial Skills, C5 = Ethics & Professionalism",null,null,null,null,null,null,null,null,null,null,null,null,null,null,null,null,null,null,null,null,null,null,null,null,null,null,null,null,null,null,"Personal Skills"]
[null,null,null,null,null,null,null,null,null,null,null,null,null,null,null,null,null,null,null,null,null,null,null,null,null,null,null,null,null,null,null,null,null,null,"Entrepreneurial Skills"]
[null,9,"Transferable Skills (if applicable)",null,null,null,null,null,null,null,null,null,null,null,null,null,null,null,null,null,null,null,null,null,null,null,null,null,null,null,null,null,null,null,"Ethics and Professionalism"]
[null,null,"(Skills learned in the course of study which can be useful and utilized in other settings)",null,null,null,null,null,1,null,null,null,null,null,null,null,null,null,null,null,null,null,null,null,null,null,null,null,null,null,null,null,null,null,"C1"]
[null,null,null,null,null,null,null,null,2,null,null,null,null,null,null,null,null,null,null,null,null,null,null,null,null,null,null,null,null,null,null,null,null,null,"C2"]
[null,null,null,null,null,null,null,null,3,null,null,null,null,null,null,null,null,null,null,null,null,null,null,null,null,null,null,null,null,null,null,null,null,null,"C3A"]
[null,null,null,null,null,null,null,null,"Open-ended response (if any)",null,null,null,null,null,null,null,null,null,null,null,null,null,null,null,null,null,null,null,null,null,null,null,null,null,"C3B"]
[null,null,null,null,null,null,null,null,4,null,null,null,null,null,null,null,null,null,null,null,null,null,null,null,null,null,null,null,null,null,null,null,null,null,"C3C"]
[null,null,null,null,null,null,null,null,null,null,null,null,null,null,null,null,null,null,null,null,null,null,null,null,null,null,null,null,null,null,null,null,null,null,"C3D"]
[null,null,null,null,null,null,null,null,null,null,null,null,null,null,null,null,null,null,null,null,null,null,null,null,null,null,null,"`",null,null,null,null,null,null,"C3E"]
[null,10,"Distribution of Student Learning Time (SLT)",null,null,null,null,null,null,null,null,null,null,null,null,null,null,null,null,null,null,null,null,null,null,null,null,null,null,null,null,null,null,null,"C3F"]
[null,null,"Note: This SLT calculation is designed for home grown programme only.",null,null,null,null,null,null,null,null,null,null,null,null,null,null,null,null,null,null,null,null,null,null,null,null,null,null,null,null,null,null,null,"C4A"]
[null,null,null,null,null,null,null,null,null,null,null,null,null,null,null,null,null,null,null,null,null,null,null,null,null,null,null,null,null,null,null,null,null,null,"C4B"]
[null,null,null,"Course Content Outline and Subtopics",null,null,null,null,null,null,"CLO*",null,"Learning and Teaching Activities**",null,null,null,null,null,null,null,null,null,null,"Total SLT",null,null,null,null,null,null,null,null,null,null,"C5"]
[null,null,null,null,null,null,null,null,null,null,null,null,"Face-to-Face (F2F)",null,null,null,null,null,null,null,"NF2F\nIndependent Learning\n(Asynchronous)"]
[null,null,null,null,null,null,null,null,null,null,null,null,"Physical",null,null,null,"Online/ Technology-mediated (Synchronous)"]
[null,null,null,null,null,null,null,null,null,null,null,null,"L","T","P","O","L","T","P","O"]
[null,null,null,1]
[null,null,null,2]
[null,null,null,3]
[null,null,null,4]
[null,null,null,5]
[null,null,null,6]
[null,null,null,7]
[null,null,null,8]
[null,null,null,9]
[null,null,null,10]
[null,null,null,11]
[null,null,null,12]
[null,null,null,13]
[null,null,null,14]
[null,null,null,15]
[null,null,null,"SUB-TOTAL SLT: ",null,null,null,null,null,null,null,null,null,null,null,null,null,null,null,null,null,null,null,{"$f":"SUM(M60:P74)+SUM(Q60:T74)+SUM(U60:W74)","v":0}]
[null,null,null,"Continous Assessement",null,null,null,null,null,null,"%",null,"Face-to-Face (F2F)",null,null,null,null,null,null,null,"NF2F\nIndependent Learning for Assessment (Asynchronous)"]
[null,null,null,null,null,null,null,null,null,null,null,null,"Physical",null,null,null,"Online/ Technology-mediated (Synchronous)"]
[null,null,null,1]
[null,null,null,2]
[null,null,null,3]
[null,null,null,4]
[null,null,null,5]
[null,null,null,"SUB-TOTAL SLT: ",null,null,null,null,null,null,null,null,null,null,null,null,null,null,null,null,null,null,null,{"$f":"SUM(M78:W82)","v":0}]
[null,null,null,"Final Assessement",null,null,null,null,null,null,"%",null,"Face-to-Face (F2F)",null,null,null,null,null,null,null,"NF2F\nIndependent Learning for Assessment (Asynchronous)"]
[null,null,null,null,null,null,null,null,null,null,null,null,"Physical",null,null,null,"Online/ Technology-mediated (Synchronous)"]
[null,null,null,1]
[null,null,null,2]
[null,null,null,3]
[null,null,null,4]
[null,null,null,5]
[null,null,null,"SUB-TOTAL SLT: ",null,null,null,null,null,null,null,null,null,null,null,null,null,null,null,null,null,null,null,{"$f":"SUM(M86:W90)","v":0}]
[]
[null,null,null,"SLT for Assessment:",null,null,null,null,null,null,null,null,null,null,null,null,null,null,null,null,null,null,null,{"$f":"X83+X91","v":0}]
[null,null,null,"GRAND TOTAL SLT:",null,null,null,null,null,null,null,null,null,null,null,null,null,null,null,null,null,null,null,{"$f":"X93+X75","v":0}]
[null,null,null,"A","% SLT for F2F Physical Component: \n[Total F2F Physical /(Total F2F Physical + Total F2F Online + Total Independent Learning) x 100)]",null,null,null,null,null,null,null,null,null,null,null,null,null,null,null,null,null,null,{"$f":"IFERROR(((SUM(M60:P74)+SUM(M78:P82)+SUM(M86:P90))/X94)* 100,\"\")","v":""}]
[]
[null,null,null,"B","% SLT for Online & Independent Learning Component:\n[(Total F2F Online + Total Independent Learning) /( Total F2F Physical + Total F2F Online + Total Independent Learning) x 100]",null,null,null,null,null,null,null,null,null,null,null,null,null,null,null,null,null,null,{"$f":"IFERROR((SUM(Q60:W74)+SUM(Q78:W82) + SUM(Q86:W90))/X94 * 100,\"\")","v":""}]
[null,null,null,"C","% SLT for All Practical Component:\n[% F2F Physical Practical + % F2F Online Practical]",null,null,null,null,null,null,null,null,null,null,null,null,null,null,null,null,null,null,{"$f":"IFERROR(X99+X100,\"\")","v":""}]
[null,null,null,"C1","% SLT for F2F Physical Practical Component\n[Total F2F Physical Practical /( Total F2F Physical + Total F2F Online + Total Independent Learning)  x 100)]",null,null,null,null,null,null,null,null,null,null,null,null,null,null,null,null,null,null,{"$f":"IFERROR(SUM(O60:O74)/X94*100,\"\")","v":""}]
[null,null,null,"C2","% SLT for F2F Online Practical Component\n[Total F2F Online Practical / (Total F2F Physical + Total F2F Online + Total Independent Learning) x 100]",null,null,null,null,null,null,null,null,null,null,null,null,null,null,null,null,null,null,{"$f":"IFERROR(SUM(S60:S74)/X94 *100,\"\")","v":""}]
[null,null,null,null,null,null,null,null,null,null,null,null,null,null,null,null,null,null,null,null,null,null,null,null,null,{"$f":"IFERROR(X97+X99,\"\")","v":""}]
[null,null,null,"Please  tick (√) if this course is Industrial Training/ Clinical Placement/ Practicum using 50% of Effective Learning Time (ELT)"]
[null,null,null,"Note: "]
[null,null,null,"* Indicate the CLO based on the CLO's numbering in Item 8"]
[null,null,null,"** For ODL programme: Courses with mandatory practical requiremnets imposed by the programme standards or any related standards can be exempted from complying to the minimum 80% ODL delivery rule in the SLT."]
[]
[null,11,"Identify special requirement or resources to deliver the course (e.g., software, nursery, computer lab, simulation room etc)"]
[]
[null,12,"References (include required and further readings, and should be the most current)"]
[]
[null,13,"Other additional information (if applicable)"]
[]
[]
[null,null,"Note: Number of PLO indicated is purely for illustration purposes only and the number is subjected to the curriculum design."]

{"sheet":"INDEX","index":3,"n_rows":110,"n_cols":25,"rows_kept":110,"cut":false,"hidden":false,"merged":[[3,3,3,4]]}
[]
[null,"GUIDE",null,null,null,null,null,null,null,null,null,null,null,null,null,null,"√"]
[null,"FORM",null,"",null,null,null,null,null,null,null,null,null,null,null,null,"X"]
[null,"INDEX","Classification of Courses","FOR ODL PROGRAMME ONLY\r\nSummary of SLT Percentage for Open and Distance Learning (ODL) per course\r\n(Min 80% / course)",null,"Comments by Panel of Assessors","Comments by Panel of Assessors during visit \n(if applicable)"]
[null,"SPS8113","Major (core) ",null,{"$f":"IF(D5=\"\",\"\",IF(D5>=80,\"√\",\"x\"))","v":""}]
[null,"RSC8002","Major (core) ",null,""]
[null,"SPS8310","Major (core) ",null,""]
[null,null,null,null,""]
[null,null,null,null,""]
[null,null,null,null,""]
[null,null,null,null,""]
[null,null,null,null,""]
[null,null,null,null,""]
[null,null,null,null,""]
[null,null,null,null,""]
[null,null,null,null,""]
[null,null,null,null,""]
[null,null,null,null,""]
[null,null,null,null,""]
[null,null,null,null,""]
[null,null,null,null,""]
[null,null,null,null,""]
[null,null,null,null,""]
[null,null,null,null,""]
[null,null,null,null,""]
[null,null,null,null,""]
[null,null,null,null,""]
[null,null,null,null,""]
[null,null,null,null,""]
[null,null,null,null,""]
[null,null,null,null,""]
[null,null,null,null,"",null,null,null,null,null,null,null,{"$f":"IF(ISBLANK(D5),\"\",IF(D5>=80,\"√\",\"X\"))","v":""}]
[null,null,null,null,""]
[null,null,null,null,""]
[null,null,null,null,""]
[null,null,null,null,""]
[null,null,null,null,""]
[null,null,null,null,""]
[null,null,null,null,""]
[null,null,null,null,""]
[null,null,null,null,""]
[null,null,null,null,""]
[null,null,null,null,""]
[null,null,null,null,""]
[null,"MPU3143","Compulsory",null,{"$f":"COUNTIF(E5:E44,\"√\")","v":0},"Number of ODL Courses"]
[null,"MPU3212","Compulsory",null,{"$f":"COUNTA(B5:B44)","v":3},"Total Courses"]
[null,"MPU3242","Compulsory",null,{"$f":"(E45/E46)*100","v":0},{"$f":"IFERROR(IF(E47>60,\"ODL PROGRAMME\", \"NOT MEETING MINIMUM REQUIREMENT OF ODL PROGRAMME\"),\"\")","v":"NOT MEETING MINIMUM REQUIREMENT OF ODL PROGRAMME"},"% ODL Courses/ programme \n(Min 61%/ programme) "]
[null,"MPU3262","Compulsory"]
[null,"MPU3332","Compulsory"]
[null,"MPU3422","Compulsory"]
[]
[]
[]
[]
[]
[]
[]
[]
[]
[]
[]
[]
[]
[]
[]
[]
[]
[]
[]
[]
[]
[]
[]
[]
[]
[]
[]
[]
[]
[]
[]
[]
[]
[]
[]
[]
[]
[]
[]
[]
[]
[]
[]
[]
[]
[]
[]
[]
[]
[]
[]
[]
[]
[]
[]
[]
[]
[]
[]
[null,null,null,null,null,null,null,null,null,null,null,null,null,null,null,null,null,null,null,null,null,null,null,null,{"$f":"SUM(T71:T85)","v":0}]

{"sheet":"SPS8113","index":4,"n_rows":113,"n_cols":35,"rows_kept":113,"cut":false,"hidden":false,"merged":[[8,1,10,1],[8,2,10,4],[8,6,8,27],[9,6,9,27],[10,6,10,27],[3,2,3,4],[3,5,3,27],[4,2,4,4],[4,5,4,27],[5,2,5,4],[5,5,5,27],[11,2,11,4],[11,5,11,7],[11,9,11,10],[11,12,11,27],[12,2,12,4],[12,5,12,7],[6,2,6,4],[6,5,6,11],[7,2,7,4],[7,5,7,27],[13,2,13,4],[13,5,13,27],[15,2,22,4],[15,5,15,6],[15,7,15,26],[16,5,16,6],[16,7,16,26],[17,5,17,6],[17,7,17,26],[18,5,18,6],[22,5,22,6],[22,7,22,26],[24,2,24,27],[26,3,27,4],[26,5,26,16],[26,17,27,21],[26,22,27,25],[18,7,18,26],[19,5,19,6],[19,7,19,26],[20,5,20,6],[20,7,20,26],[21,5,21,6],[21,7,21,26],[30,3,30,4],[30,17,30,21],[30,22,30,25],[31,3,31,4],[31,17,31,21],[31,22,31,25],[28,3,28,4],[28,17,28,21],[28,22,28,25],[29,3,29,4],[29,17,29,21],[29,22,29,25],[34,3,34,4],[34,17,34,21],[34,22,34,25],[35,3,35,4],[35,17,35,21],[35,22,35,25],[32,3,32,4],[32,17,32,21],[32,22,32,25],[33,3,33,4],[33,17,33,21],[33,22,33,25],[42,3,42,25],[44,2,44,7],[45,2,46,7],[45,9,45,25],[46,9,46,25],[47,9,47,25],[36,3,38,4],[36,17,36,21],[37,17,37,21],[38,17,38,21],[40,3,40,25],[41,3,41,25],[56,20,58,22],[57,12,57,15],[57,16,57,19],[59,4,59,9],[59,10,59,11],[59,20,59,22],[48,8,48,25],[49,8,50,8],[49,9,50,25],[52,2,52,27],[53,2,53,26],[55,3,58,9],[55,10,58,11],[55,12,55,22],[55,23,58,25],[56,12,56,19],[62,4,62,9],[62,10,62,11],[62,20,62,22],[62,23,62,25],[63,4,63,9],[63,10,63,11],[63,20,63,22],[63,23,63,25],[59,23,59,25],[60,4,60,9],[60,10,60,11],[60,20,60,22],[60,23,60,25],[61,4,61,9],[61,10,61,11],[61,20,61,22],[61,23,61,25],[66,4,66,9],[66,10,66,11],[66,20,66,22],[66,23,66,25],[67,4,67,9],[67,10,67,11],[67,20,67,22],[67,23,67,25],[64,4,64,9],[64,10,64,11],[64,20,64,22],[64,23,64,25],[65,4,65,9],[65,10,65,11],[65,20,65,22],[65,23,65,25],[70,4,70,9],[70,10,70,11],[70,20,70,22],[70,23,70,25],[71,4,71,9],[71,10,71,11],[71,20,71,22],[71,23,71,25],[68,4,68,9],[68,10,68,11],[68,20,68,22],[68,23,68,25],[69,4,69,9],[69,10,69,11],[69,20,69,22],[69,23,69,25],[73,3,73,22],[73,23,73,25],[74,3,75,9],[74,10,75,11],[74,12,74,19],[74,20,75,22],[75,12,75,15],[75,16,75,19],[72,4,72,9],[72,10,72,11],[72,20,72,22],[72,23,72,25],[76,4,76,9],[76,10,76,11],[76,12,76,15],[76,16,76,19],[76,20,76,22],[77,4,77,9],[77,10,77,11],[77,12,77,15],[77,16,77,19],[77,20,77,22],[78,4,78,9],[78,10,78,11],[78,12,78,15],[78,16,78,19],[78,20,78,22],[79,4,79,9],[79,10,79,11],[79,12,79,15],[79,16,79,19],[79,20,79,22],[81,23,81,25],[82,3,83,9],[82,10,83,11],[82,12,82,19],[82,20,83,22],[83,12,83,15],[83,16,83,19],[80,4,80,9],[80,10,80,11],[80,12,80,15],[80,16,80,19],[80,20,80,22],[81,3,81,22],[84,4,84,9],[84,10,84,11],[84,12,84,15],[84,16,84,19],[84,20,84,22],[85,4,85,9],[85,10,85,11],[85,12,85,15],[85,16,85,19],[85,20,85,22],[86,4,86,9],[86,10,86,11],[86,12,86,15],[86,16,86,19],[86,20,86,22],[87,4,87,9],[87,10,87,11],[87,12,87,15],[87,16,87,19],[87,20,87,22],[89,23,89,25],[91,3,91,22],[91,23,91,25],[92,3,92,22],[92,23,92,25],[93,3,94,3],[93,4,94,22],[93,23,94,25],[88,4,88,9],[88,10,88,11],[88,12,88,15],[88,16,88,19],[88,20,88,22],[89,3,89,22],[98,4,98,22],[98,23,98,25],[100,3,100,22],[100,23,100,25],[102,3,102,25],[103,3,103,25],[95,4,95,22],[95,23,95,25],[96,4,96,22],[96,23,96,25],[97,4,97,22],[97,23,97,25],[109,1,110,1],[109,2,110,9],[109,10,110,27],[112,2,112,27],[113,1,113,27],[104,3,104,22],[105,1,106,1],[105,2,106,9],[105,10,106,27],[107,1,108,1],[107,2,108,9],[107,10,108,27]]}
[]
[null,"Back To FORM @ TEMPLATE"]
[null,null,null,null,null,null,null,null,null,null,null,null,null,null,null,null,null,null,null,null,null,null,null,null,null,null,null,null,null,null,null,null,null,null,"√"]
[]
[null,1,"Course Name:",null,null,"Seminar (Proposal Defence) ",null,null,null,null,null,null,null,null,null,null,null,null,null,null,null,null,null,null,null,null,null,null,null,null,null,null,null,null,"Semester"]
[null,null,"Course Code:",null,null,"SPS8113",null,null,null,null,null,null,null,null,null,null,null,null,null,null,null,null,null,null,null,null,null,null,null,null,null,null,null,null,1]
[null,null,"Course Classification:",null,null,"Major (core) ",null,null,null,null,null,null,null,null,null,null,null,null,null,null,null,null,null,null,null,null,null,null,null,null,null,null,null,null,2]
[null,2,"Synopsis:",null,null,"This study program is aimed at producing students with excellent, skillful, creative, innovative, independent, trustworthy, accountable, responsible,\nand having national and international insights on research finding. To support achieving the goal, this course is conducted to enable the students to get local, national, and\ninternational experience. In view of that, this course has been planned in such a way that the students will experience attending and presenting in international conferences overseas, an international conference in their home country, and a local colloquium. Of course, the experience will lead them to improve their affective, cognitive, and psychomotoric campetences. Not only will they get oral experience but also they will be involved in reading and writing research paper intensively.",null,null,null,null,null,null,null,null,null,null,null,null,null,null,null,null,null,null,null,null,null,null,null,null,null,null,null,null,3]
[null,{"$f":"B8+1","v":3},"Name(s) of Academic Staff:",null,null,1,"Appointed Supervisors"]
[null,null,null,null,null,2,null,null,null,null,null,null,null,null,null,null,null,null,null,null,null,null,null,null,null,null,null,null,null,null,null,null,null,null,"Year Offered"]
[null,null,null,null,null,3,null,null,null,null,null,null,null,null,null,null,null,null,null,null,null,null,null,null,null,null,null,null,null,null,null,null,null,null,1]
[null,{"$f":"B9+1","v":4},"Semester and Year offered:",null,null,"Year Offered",null,null,1,"Semester",null,2,"Remarks:",null,null,null,null,null,null,null,null,null,null,null,null,null,null,null,null,null,null,null,null,null,2]
[null,{"$f":"B12+1","v":5},"Credit Value:",null,null,3,null,null,null,null,null,null,null,null,null,null,null,null,null,null,null,null,null,null,null,null,null,null,null,null,null,null,null,null,3]
[null,6,"Pre-requisite/ co-requisite (if any):",null,null,"Nil",null,null,null,null,null,null,null,null,null,null,null,null,null,null,null,null,null,null,null,null,null,null,null,null,null,null,null,null,4]
[null,null,null,null,null,null,null,null,null,null,null,null,null,null,null,null,null,null,null,null,null,null,null,null,null,null,null,null,null,null,null,null,null,null,5]
[null,7,"Course Learning Outcomes (CLO)",null,null,"CLO1",null,"Equip students with the knowledge and skills necessary in designing a research plan/proposal which is systematic, scientific and logical manner. (C1, PLO1, PLO2, PLO3, PLO5, PLO7)",null,null,null,null,null,null,null,null,null,null,null,null,null,null,null,null,null,null,null,null,null,null,null,null,null,null,6]
[null,null,null,null,null,"CLO2",null,"Exposed to national and international conferences/colloquium/seminar on research concepts with minimal supervision (C2, PLO4)",null,null,null,null,null,null,null,null,null,null,null,null,null,null,null,null,null,null,null,null,null,null,null,null,null,null,7]
[null,null,null,null,null,"CLO3",null,"Demonstrate the synthesis of information in written and verbal communication after attending national and internaltionla conferences/colloquium. (C3,PLO6)",null,null,null,null,null,null,null,null,null,null,null,null,null,null,null,null,null,null,null,null,null,null,null,null,null,null,8]
[]
[null,null,null,null,null,null,null,null,null,null,null,null,null,null,null,null,null,null,null,null,null,null,null,null,null,null,null,null,null,null,null,null,null,null,"Compulsory"]
[null,null,null,null,null,null,null,null,null,null,null,null,null,null,null,null,null,null,null,null,null,null,null,null,null,null,null,null,null,null,null,null,null,null,"Major (core) "]
[null,null,null,null,null,null,null,null,null,null,null,null,null,null,null,null,null,null,null,null,null,null,null,null,null,null,null,null,null,null,null,null,null,null,"Minor"]
[null,null,null,null,null,null,null,null,null,null,null,null,null,null,null,null,null,null,null,null,null,null,null,null,null,null,null,null,null,null,null,null,null,null,"Elective (core) "]
[null,null,null,null,null,null,null,null,null,null,null,null,null,null,null,null,null,null,null,null,null,null,null,null,null,null,null,null,null,null,null,null,null,null,"Elective (open/free)"]
[null,8,"Mapping of the Course Learning Outcomes to the Programme Learning Outcomes, Teaching Methods and Assessment Methods"]
[]
[null,null,null,"Course Learning Outcomes",null,"Programme Learning Outcomes (PLO)",null,null,null,null,null,null,null,null,null,null,null,"Teaching Methods",null,null,null,null,"Assessment Methods"]
[null,null,null,null,null,"PLO 1","PLO 2","PLO 3","PLO 4","PLO 5","PLO 6","PLO 7","PLO 8"]
[null,null,null,{"$f":"IF(ISBLANK(F16),\"\",F16)","v":"CLO1"},null,"√","√","√",null,"√",null,"√",null,null,null,null,null,"Lecture & Tutorial",null,null,null,null,"Research Proposal"]
[null,null,null,{"$f":"IF(ISBLANK(F17),\"\",F17)","v":"CLO2"},null,null,null,null,"√",null,null,null,null,null,null,null,null,"Conferences/Seminar/Colloquium",null,null,null,null,"Presentation"]
[null,null,null,"CLO3",null,null,null,null,null,null,"√",null,null,null,null,null,null,"Seminar/Colloquium",null,null,null,null,"Presentation"]
[null,null,null,""]
[null,null,null,""]
[null,null,null,""]
[null,null,null,""]
[null,null,null,""]
[null,null,null,"Mapping with MQF Cluster of Learning Outcomes",null,"C1","C2","C3A",null,"C5",null,"C3D",null,null,null,null,null,null,null,null,null,null,null,null,null,null,null,null,null,null,null,null,null,null,"Cognitive skills  "]
[null,null,null,null,null,null,null,null,"C3F",null,null,null,null,null,null,null,null,null,null,null,null,null,null,null,null,null,null,null,null,null,null,null,null,null,"Interpersonal skills"]
[null,null,null,null,null,null,null,null,null,null,"C3C",null,null,null,null,null,null,null,null,null,null,null,null,null,null,null,null,null,null,null,null,null,null,null,"Communication Skills"]
[null,null,null,null,null,null,null,null,null,null,null,null,null,null,null,null,null,null,null,null,null,null,null,null,null,null,null,null,null,null,null,null,null,null,"Digital Skills"]
[null,null,null,"Indicate the primary causal link between the CLO and PLO by ticking  '√' in the appropriate box.",null,null,null,null,null,null,null,null,null,null,null,null,null,null,null,null,null,null,null,null,null,null,null,null,null,null,null,null,null,null,"Numeracy Skills"]
[null,null,null,"C1 = Knowledge & Understanding, C2 = Cognitive Skills, C3A = Practical Skills, C3B = Interpersonal Skills, C3C = Communication Skills, C3D = Digital Skills,",null,null,null,null,null,null,null,null,null,null,null,null,null,null,null,null,null,null,null,null,null,null,null,null,null,null,null,null,null,null,"Leadership, Autonomy and Responsibility"]
[null,null,null,"C3E = Numeracy Skills, C3F = Leadership, Autonomy & Responsibility, C4A = Personal Skills, C4B = Entrepreneurial Skills, C5 = Ethics & Professionalism",null,null,null,null,null,null,null,null,null,null,null,null,null,null,null,null,null,null,null,null,null,null,null,null,null,null,null,null,null,null,"Personal Skills"]
[null,null,null,null,null,null,null,null,null,null,null,null,null,null,null,null,null,null,null,null,null,null,null,null,null,null,null,null,null,null,null,null,null,null,"Entrepreneurial Skills"]
[null,9,"Transferable Skills (if applicable)",null,null,null,null,null,null,null,null,null,null,null,null,null,null,null,null,null,null,null,null,null,null,null,null,null,null,null,null,null,null,null,"Ethics and Professionalism"]
[null,null,"(Skills learned in the course of study which can be useful and utilized in other settings)",null,null,null,null,null,1,"Communication Skills",null,null,null,null,null,null,null,null,null,null,null,null,null,null,null,null,null,null,null,null,null,null,null,null,"C1"]
[null,null,null,null,null,null,null,null,2,"Personal Skills",null,null,null,null,null,null,null,null,null,null,null,null,null,null,null,null,null,null,null,null,null,null,null,null,"C2"]
[null,null,null,null,null,null,null,null,3,"Ethics and Professionalism",null,null,null,null,null,null,null,null,null,null,null,null,null,null,null,null,null,null,null,null,null,null,null,null,"C3A"]
[null,null,null,null,null,null,null,null,"Open-ended response (if any)",null,null,null,null,null,null,null,null,null,null,null,null,null,null,null,null,null,null,null,null,null,null,null,null,null,"C3B"]
[null,null,null,null,null,null,null,null,4,null,null,null,null,null,null,null,null,null,null,null,null,null,null,null,null,null,null,null,null,null,null,null,null,null,"C3C"]
[null,null,null,null,null,null,null,null,null,null,null,null,null,null,null,null,null,null,null,null,null,null,null,null,null,null,null,null,null,null,null,null,null,null,"C3D"]
[null,null,null,null,null,null,null,null,null,null,null,null,null,null,null,null,null,null,null,null,null,null,null,null,null,null,null,"`",null,null,null,null,null,null,"C3E"]
[null,10,"Distribution of Student Learning Time (SLT)",null,null,null,null,null,null,null,null,null,null,null,null,null,null,null,null,null,null,null,null,null,null,null,null,null,null,null,null,null,null,null,"C3F"]
[null,null,"Note: This SLT calculation is designed for home grown programme only.",null,null,null,null,null,null,null,null,null,null,null,null,null,null,null,null,null,null,null,null,null,null,null,null,null,null,null,null,null,null,null,"C4A"]
[null,null,null,null,null,null,null,null,null,null,null,null,null,null,null,null,null,null,null,null,null,null,null,null,null,null,null,null,null,null,null,null,null,null,"C4B"]
[null,null,null,"Course Content Outline and Subtopics",null,null,null,null,null,null,"CLO*",null,"Learning and Teaching Activities**",null,null,null,null,null,null,null,null,null,null,"Total SLT",null,null,null,null,null,null,null,null,null,null,"C5"]
[null,null,null,null,null,null,null,null,null,null,null,null,"Face-to-Face (F2F)",null,null,null,null,null,null,null,"NF2F\nIndependent Learning\n(Asynchronous)"]
[null,null,null,null,null,null,null,null,null,null,null,null,"Physical",null,null,null,"Online/ Technology-mediated (Synchronous)"]
[null,null,null,null,null,null,null,null,null,null,null,null,"L","T","P","O","L","T","P","O"]
[null,null,null,1,"Introduction and briefing on conferences/colloquium/semiars that students can participate/presenting a research proposal",null,null,null,null,null,"CLO1",null,2,1,null,null,null,null,null,null,5]
[null,null,null,2,"Attending a national conference/colloquium/Seminar, the students perform their quality of involvement, independence, cooperation, and appreciation excellently",null,null,null,null,null,"CLO2",null," "," ",3,null,null,null,null,null,8]
[null,null,null,3,"Attending an internal colloquium/seminar at FCUC, the students perform their quality of involvement, independence, cooperation, and appreciation excellently.",null,null,null,null,null,"CLO2",null," "," ",3,null,null,null,null,null,8]
[null,null,null,4,"Attending an international conference in Malaysia, the students perform their\nquality of involvement, independence, cooperation, and appreciation excellently.",null,null,null,null,null,"CLO2",null," "," ",3,null,null,null,null,null,8]
[null,null,null,5,"Exposed to a real situation on research proposal by attending internal Seminar, the students are able to identify research problems, to formulate research purposes, to formulate relevant conceptual framework, and to formulate relevant research methodologies to solve.\nthe problems briefly and clearly",null,null,null,null,null,"CLO2",null," "," ",3,null,null,null,null,null,8]
[null,null,null,6,"Exposed to a real situation on research proposal by attending internal colloquium, the students are able to describe relevant theories of management and business related theories.",null,null,null,null,null,"CLO2",null," "," ",3,null,null,null,null,null,8]
[null,null,null,7,"Exposed to a real situation on research proposal by attending external colloquiumon, the students are able to write a brief and a complete research proposal using standard technical and academic writing.",null,null,null,null,null,"CLO2",null," "," ",3,null,null,null,null,null,8]
[null,null,null,8,"Presenting in an international conference in Malaysia, the students perform their\npresentation quality excellently.",null,null,null,null,null,"CLO3",null," "," ",3,null,null,null,null,null,8]
[null,null,null,9,"Presenting in a national conference/colloquium/seminar, the students perform their\npresentation quality excellently.",null,null,null,null,null,"CLO3",null," "," ",3,null,null,null,null,null,8]
[null,null,null,10,"Presenting in an internal colloquium at FCUC, the students perform their\npresentation quality excellently.",null,null,null,null,null,"CLO3",null," "," ",3,null,null,null,null,null,8]
[null,null,null,11]
[null,null,null,12]
[null,null,null,13]
[null,null,null,14]
[null,null,null,"SUB-TOTAL SLT: ",null,null,null,null,null,null,null,null,null,null,null,null,null,null,null,null,null,null,null,{"$f":"SUM(M60:P73)+SUM(Q60:T73)+SUM(U60:W73)","v":107}]
[null,null,null,"Continous Assessement",null,null,null,null,null,null,"%",null,"Face-to-Face (F2F)",null,null,null,null,null,null,null,"NF2F\nIndependent Learning for Assessment (Asynchronous)"]
[null,null,null,null,null,null,null,null,null,null,null,null,"Physical",null,null,null,"Online/ Technology-mediated (Synchronous)"]
[null,null,null,1,"Research Proposal",null,null,null,null,null,80,null," ",null,null,null,null,null,null,null,6]
[null,null,null,2,"Presentation",null,null,null,null,null,20,null,2,null,null,null,null,null,null,null,5]
[null,null,null,3," ",null,null,null,null,null," "]
[null,null,null,4]
[null,null,null,5]
[null,null,null,"SUB-TOTAL SLT: ",null,null,null,null,null,null,null,null,null,null,null,null,null,null,null,null,null,null,null,{"$f":"SUM(M77:W81)","v":13}]
[null,null,null,"Final Assessement",null,null,null,null,null,null,"%",null,"Face-to-Face (F2F)",null,null,null,null,null,null,null,"NF2F\nIndependent Learning for Assessment (Asynchronous)"]
[null,null,null,null,null,null,null,null,null,null,null,null,"Physical",null,null,null,"Online/ Technology-mediated (Synchronous)"]
[null,null,null,1," ",null,null,null,null,null," ",null," ",null,null,null,null,null,null,null," "]
[null,null,null,2]
[null,null,null,3]
[null,null,null,4]
[null,null,null,5]
[null,null,null,"SUB-TOTAL SLT: ",null,null,null,null,null,null,null,null,null,null,null,null,null,null,null,null,null,null,null,{"$f":"SUM(M85:W89)","v":0}]
[]
[null,null,null,"SLT for Assessment:",null,null,null,null,null,null,null,null,null,null,null,null,null,null,null,null,null,null,null,{"$f":"X82+X90","v":13}]
[null,null,null,"GRAND TOTAL SLT:",null,null,null,null,null,null,null,null,null,null,null,null,null,null,null,null,null,null,null,{"$f":"X92+X74","v":120}]
[null,null,null,"A","% SLT for F2F Physical Component: \n[Total F2F Physical /(Total F2F Physical + Total F2F Online + Total Independent Learning) x 100)]",null,null,null,null,null,null,null,null,null,null,null,null,null,null,null,null,null,null,{"$f":"IFERROR(((SUM(M60:P73)+SUM(M77:P81)+SUM(M85:P89))/X93)* 100,\"\")","v":26.666666666666668}]
[]
[null,null,null,"B","% SLT for Online & Independent Learning Component:\n[(Total F2F Online + Total Independent Learning) /( Total F2F Physical + Total F2F Online + Total Independent Learning) x 100]",null,null,null,null,null,null,null,null,null,null,null,null,null,null,null,null,null,null,{"$f":"IFERROR((SUM(Q60:W73)+SUM(Q77:W81) + SUM(Q85:W89))/X93 * 100,\"\")","v":73.333333333333329}]
[null,null,null,"C","% SLT for All Practical Component:\n[% F2F Physical Practical + % F2F Online Practical]",null,null,null,null,null,null,null,null,null,null,null,null,null,null,null,null,null,null,{"$f":"IFERROR(X98+X99,\"\")","v":22.5}]
[null,null,null,"C1","% SLT for F2F Physical Practical Component\n[Total F2F Physical Practical /( Total F2F Physical + Total F2F Online + Total Independent Learning)  x 100)]",null,null,null,null,null,null,null,null,null,null,null,null,null,null,null,null,null,null,{"$f":"IFERROR(SUM(O60:O73)/X93*100,\"\")","v":22.5}]
[null,null,null,"C2","% SLT for F2F Online Practical Component\n[Total F2F Online Practical / (Total F2F Physical + Total F2F Online + Total Independent Learning) x 100]",null,null,null,null,null,null,null,null,null,null,null,null,null,null,null,null,null,null,{"$f":"IFERROR(SUM(S60:S73)/X93 *100,\"\")","v":0}]
[null,null,null,null,null,null,null,null,null,null,null,null,null,null,null,null,null,null,null,null,null,null,null,null,null,{"$f":"IFERROR(X96+X98,\"\")","v":95.833333333333329}]
[null,null,null,"Please  tick (√) if this course is Industrial Training/ Clinical Placement/ Practicum using 50% of Effective Learning Time (ELT)"]
[null,null,null,"Note: "]
[null,null,null,"* Indicate the CLO based on the CLO's numbering in Item 8"]
[null,null,null,"** For ODL programme: Courses with mandatory practical requiremnets imposed by the programme standards or any related standards can be exempted from complying to the minimum 80% ODL delivery rule in the SLT."]
[]
[null,11,"Identify special requirement or resources to deliver the course (e.g., software, nursery, computer lab, simulation room etc)",null,null,null,null,null,null,null,"None "]
[]
[null,12,"References (include required and further readings, and should be the most current)",null,null,null,null,null,null,null,"Event Always (2025), Upcoming Conferences in Malaysia, Available at: https://www.eventalways.com/malaysia/conferences."]
[]
[null,13,"Other additional information (if applicable)",null,null,null,null,null,null,null,"Nil"]
[]
[]
[null,null,"Note: Number of PLO indicated is purely for illustration purposes only and the number is subjected to the curriculum design."]

{"sheet":"RSC8002","index":5,"n_rows":108,"n_cols":35,"rows_kept":108,"cut":false,"hidden":false,"merged":[[8,1,10,1],[8,2,10,4],[8,6,8,27],[9,6,9,27],[10,6,10,27],[3,2,3,4],[3,5,3,27],[4,2,4,4],[4,5,4,27],[5,2,5,4],[5,5,5,27],[11,2,11,4],[11,5,11,7],[11,9,11,10],[11,12,11,27],[12,2,12,4],[12,5,12,7],[6,2,6,4],[6,5,6,11],[7,2,7,4],[7,5,7,27],[13,2,13,4],[13,5,13,27],[15,2,22,4],[15,5,15,6],[15,7,15,26],[16,5,16,6],[16,7,16,26],[17,5,17,6],[17,7,17,26],[18,5,18,6],[22,5,22,6],[22,7,22,26],[24,2,24,27],[26,3,27,4],[26,5,26,16],[26,17,27,21],[26,22,27,25],[18,7,18,26],[19,5,19,6],[19,7,19,26],[20,5,20,6],[20,7,20,26],[21,5,21,6],[21,7,21,26],[30,3,30,4],[30,17,30,21],[30,22,30,25],[31,3,31,4],[31,17,31,21],[31,22,31,25],[28,3,28,4],[28,17,28,21],[28,22,28,25],[29,3,29,4],[29,17,29,21],[29,22,29,25],[34,3,34,4],[34,17,34,21],[34,22,34,25],[35,3,35,4],[35,17,35,21],[35,22,35,25],[32,3,32,4],[32,17,32,21],[32,22,32,25],[33,3,33,4],[33,17,33,21],[33,22,33,25],[42,3,42,25],[44,2,44,7],[45,2,46,7],[45,9,45,25],[46,9,46,25],[47,9,47,25],[36,3,38,4],[36,17,36,21],[37,17,37,21],[38,17,38,21],[40,3,40,25],[41,3,41,25],[56,20,58,22],[57,12,57,15],[57,16,57,19],[59,4,59,9],[59,10,59,11],[59,20,59,22],[48,8,48,25],[49,8,50,8],[49,9,50,25],[52,2,52,27],[53,2,53,26],[55,3,58,9],[55,10,58,11],[55,12,55,22],[55,23,58,25],[56,12,56,19],[62,4,62,9],[62,10,62,11],[62,20,62,22],[62,23,62,25],[63,4,63,9],[63,10,63,11],[63,20,63,22],[63,23,63,25],[59,23,59,25],[60,4,60,9],[60,10,60,11],[60,20,60,22],[60,23,60,25],[61,4,61,9],[61,10,61,11],[61,20,61,22],[61,23,61,25],[66,4,66,9],[66,10,66,11],[66,20,66,22],[66,23,66,25],[67,4,67,9],[67,10,67,11],[67,20,67,22],[67,23,67,25],[64,4,64,9],[64,10,64,11],[64,20,64,22],[64,23,64,25],[65,4,65,9],[65,10,65,11],[65,20,65,22],[65,23,65,25],[70,4,70,9],[70,20,70,22],[70,23,70,25],[71,4,71,9],[71,20,71,22],[71,23,71,25],[68,4,68,9],[68,10,68,11],[68,20,68,22],[68,23,68,25],[69,4,69,9],[69,20,69,22],[69,23,69,25],[73,3,73,22],[73,23,73,25],[74,3,75,9],[74,10,75,11],[74,12,74,19],[74,20,75,22],[75,12,75,15],[75,16,75,19],[72,4,72,9],[72,20,72,22],[72,23,72,25],[76,4,76,9],[76,10,76,11],[76,12,76,15],[76,16,76,19],[76,20,76,22],[77,4,77,9],[77,10,77,11],[77,12,77,15],[77,16,77,19],[77,20,77,22],[78,4,78,9],[78,10,78,11],[78,12,78,15],[78,16,78,19],[78,20,78,22],[79,23,79,25],[80,3,81,9],[80,10,81,11],[80,12,80,19],[80,20,81,22],[81,12,81,15],[81,16,81,19],[79,3,79,22],[82,4,82,9],[82,10,82,11],[82,12,82,15],[82,16,82,19],[82,20,82,22],[83,4,83,9],[83,10,83,11],[83,12,83,15],[83,16,83,19],[83,20,83,22],[84,23,84,25],[86,3,86,22],[86,23,86,25],[87,3,87,22],[87,23,87,25],[88,3,89,3],[88,4,89,22],[88,23,89,25],[84,3,84,22],[93,4,93,22],[93,23,93,25],[95,3,95,22],[95,23,95,25],[97,3,97,25],[98,3,98,25],[90,4,90,22],[90,23,90,25],[91,4,91,22],[91,23,91,25],[92,4,92,22],[92,23,92,25],[104,1,105,1],[104,2,105,9],[104,10,105,27],[107,2,107,27],[108,1,108,27],[99,3,99,22],[100,1,101,1],[100,2,101,9],[100,10,101,27],[102,1,103,1],[102,2,103,9],[102,10,103,27]]}
[]
[null,"Back To FORM @ TEMPLATE"]
[null,null,null,null,null,null,null,null,null,null,null,null,null,null,null,null,null,null,null,null,null,null,null,null,null,null,null,null,null,null,null,null,null,null,"√"]
[]
[null,1,"Course Name:",null,null,"Research Methodology – Techniques and Trends",null,null,null,null,null,null,null,null,null,null,null,null,null,null,null,null,null,null,null,null,null,null,null,null,null,null,null,null,"Semester"]
[null,null,"Course Code:",null,null,"RSC8002",null,null,null,null,null,null,null,null,null,null,null,null,null,null,null,null,null,null,null,null,null,null,null,null,null,null,null,null,1]
[null,null,"Course Classification:",null,null,"Major (core) ",null,null,null,null,null,null,null,null,null,null,null,null,null,null,null,null,null,null,null,null,null,null,null,null,null,null,null,null,2]
[null,2,"Synopsis:",null,null,"To equip students with the knowledge, skills and abilities they will need to effectively carry out a business / management research. A particular emphasis will be placed upon developing individuals towards their workplace based PhD dissertation / project. More focus is given to the specific issues faced by researchers when carrying out research in an organisational setting.",null,null,null,null,null,null,null,null,null,null,null,null,null,null,null,null,null,null,null,null,null,null,null,null,null,null,null,null,3]
[null,{"$f":"B8+1","v":3},"Name(s) of Academic Staff:",null,null,1,"Asst Prof Dr Vincent Wee Eng Kim"]
[null,null,null,null,null,2,null,null,null,null,null,null,null,null,null,null,null,null,null,null,null,null,null,null,null,null,null,null,null,null,null,null,null,null,"Year Offered"]
[null,null,null,null,null,3,null,null,null,null,null,null,null,null,null,null,null,null,null,null,null,null,null,null,null,null,null,null,null,null,null,null,null,null,1]
[null,{"$f":"B9+1","v":4},"Semester and Year offered:",null,null,"Year Offered",null,null,1,"Semester",null,1,"Remarks:",null,null,null,null,null,null,null,null,null,null,null,null,null,null,null,null,null,null,null,null,null,2]
[null,{"$f":"B12+1","v":5},"Credit Value:",null,null,3,null,null,null,null,null,null,null,null,null,null,null,null,null,null,null,null,null,null,null,null,null,null,null,null,null,null,null,null,3]
[null,6,"Pre-requisite/ co-requisite (if any):",null,null," N/A",null,null,null,null,null,null,null,null,null,null,null,null,null,null,null,null,null,null,null,null,null,null,null,null,null,null,null,null,4]
[null,null,null,null,null,null,null,null,null,null,null,null,null,null,null,null,null,null,null,null,null,null,null,null,null,null,null,null,null,null,null,null,null,null,5]
[null,7,"Course Learning Outcomes (CLO)",null,null,"CLO1",null,"Equip students with the knowledge and skills necessary to undertake research in systematic, scientific and logical manner. (C1, PLO1)",null,null,null,null,null,null,null,null,null,null,null,null,null,null,null,null,null,null,null,null,null,null,null,null,null,null,6]
[null,null,null,null,null,"CLO2",null,"Exposed to research concepts, literature review, research design, qualitative and quantitative data analysis, information literacy skills and proposal development. (C2, PLO2)",null,null,null,null,null,null,null,null,null,null,null,null,null,null,null,null,null,null,null,null,null,null,null,null,null,null,7]
[null,null,null,null,null,"CLO3",null,"Exposed to relevant materials related to research activities. (A3, PLO6)",null,null,null,null,null,null,null,null,null,null,null,null,null,null,null,null,null,null,null,null,null,null,null,null,null,null,8]
[]
[null,null,null,null,null,null,null,null,null,null,null,null,null,null,null,null,null,null,null,null,null,null,null,null,null,null,null,null,null,null,null,null,null,null,"Compulsory"]
[null,null,null,null,null,null,null,null,null,null,null,null,null,null,null,null,null,null,null,null,null,null,null,null,null,null,null,null,null,null,null,null,null,null,"Major (core) "]
[null,null,null,null,null,null,null,null,null,null,null,null,null,null,null,null,null,null,null,null,null,null,null,null,null,null,null,null,null,null,null,null,null,null,"Minor"]
[null,null,null,null,null,null,null,null,null,null,null,null,null,null,null,null,null,null,null,null,null,null,null,null,null,null,null,null,null,null,null,null,null,null,"Elective (core) "]
[null,null,null,null,null,null,null,null,null,null,null,null,null,null,null,null,null,null,null,null,null,null,null,null,null,null,null,null,null,null,null,null,null,null,"Elective (open/free)"]
[null,8,"Mapping of the Course Learning Outcomes to the Programme Learning Outcomes, Teaching Methods and Assessment Methods"]
[]
[null,null,null,"Course Learning Outcomes",null,"Programme Learning Outcomes (PLO)",null,null,null,null,null,null,null,null,null,null,null,"Teaching Methods",null,null,null,null,"Assessment Methods"]
[null,null,null,null,null,"PLO 1","PLO 2","PLO 3","PLO 4","PLO 5","PLO 6","PLO 7","PLO 8"]
[null,null,null,{"$f":"IF(ISBLANK(F16),\"\",F16)","v":"CLO1"},null,"√",null,null,null,null,null,null,null,null,null,null,null,"Lecture & Tutorial",null,null,null,null,"Research Proposal"]
[null,null,null,{"$f":"IF(ISBLANK(F17),\"\",F17)","v":"CLO2"},null,null,"√",null,null,null,null,null,null,null,null,null,null,"Seminar",null,null,null,null,"Proposal Defence"]
[null,null,null,"CLO3",null,null,null,null,null,null,"√",null,null,null,null,null,null,"Seminar",null,null,null,null,"Thesis Dissertation"]
[null,null,null,""]
[null,null,null,""]
[null,null,null,""]
[null,null,null,""]
[null,null,null,""]
[null,null,null,"Mapping with MQF Cluster of Learning Outcomes",null,"C1",null,null,null,null,null,null,null,null,null,null,null,null,null,null,null,null,null,null,null,null,null,null,null,null,null,null,null,null,"Cognitive skills  "]
[null,null,null,null,null,null,"C2",null,null,null,null,null,null,null,null,null,null,null,null,null,null,null,null,null,null,null,null,null,null,null,null,null,null,null,"Interpersonal skills"]
[null,null,null,null,null,null,null,null,null,null,"C4A",null,null,null,null,null,null,null,null,null,null,null,null,null,null,null,null,null,null,null,null,null,null,null,"Communication Skills"]
[null,null,null,null,null,null,null,null,null,null,null,null,null,null,null,null,null,null,null,null,null,null,null,null,null,null,null,null,null,null,null,null,null,null,"Digital Skills"]
[null,null,null,"Indicate the primary causal link between the CLO and PLO by ticking  '√' in the appropriate box.",null,null,null,null,null,null,null,null,null,null,null,null,null,null,null,null,null,null,null,null,null,null,null,null,null,null,null,null,null,null,"Numeracy Skills"]
[null,null,null,"C1 = Knowledge & Understanding, C2 = Cognitive Skills, C3A = Practical Skills, C3B = Interpersonal Skills, C3C = Communication Skills, C3D = Digital Skills,",null,null,null,null,null,null,null,null,null,null,null,null,null,null,null,null,null,null,null,null,null,null,null,null,null,null,null,null,null,null,"Leadership, Autonomy and Responsibility"]
[null,null,null,"C3E = Numeracy Skills, C3F = Leadership, Autonomy & Responsibility, C4A = Personal Skills, C4B = Entrepreneurial Skills, C5 = Ethics & Professionalism",null,null,null,null,null,null,null,null,null,null,null,null,null,null,null,null,null,null,null,null,null,null,null,null,null,null,null,null,null,null,"Personal Skills"]
[null,null,null,null,null,null,null,null,null,null,null,null,null,null,null,null,null,null,null,null,null,null,null,null,null,null,null,null,null,null,null,null,null,null,"Entrepreneurial Skills"]
[null,9,"Transferable Skills (if applicable)",null,null,null,null,null,null,null,null,null,null,null,null,null,null,null,null,null,null,null,null,null,null,null,null,null,null,null,null,null,null,null,"Ethics and Professionalism"]
[null,null,"(Skills learned in the course of study which can be useful and utilized in other settings)",null,null,null,null,null,1,"Entrepreneurial Skills",null,null,null,null,null,null,null,null,null,null,null,null,null,null,null,null,null,null,null,null,null,null,null,null,"C1"]
[null,null,null,null,null,null,null,null,2,"Cognitive skills  ",null,null,null,null,null,null,null,null,null,null,null,null,null,null,null,null,null,null,null,null,null,null,null,null,"C2"]
[null,null,null,null,null,null,null,null,3,"Ethics and Professionalism",null,null,null,null,null,null,null,null,null,null,null,null,null,null,null,null,null,null,null,null,null,null,null,null,"C3A"]
[null,null,null,null,null,null,null,null,"Open-ended response (if any)",null,null,null,null,null,null,null,null,null,null,null,null,null,null,null,null,null,null,null,null,null,null,null,null,null,"C3B"]
[null,null,null,null,null,null,null,null,4,null,null,null,null,null,null,null,null,null,null,null,null,null,null,null,null,null,null,null,null,null,null,null,null,null,"C3C"]
[null,null,null,null,null,null,null,null,null,null,null,null,null,null,null,null,null,null,null,null,null,null,null,null,null,null,null,null,null,null,null,null,null,null,"C3D"]
[null,null,null,null,null,null,null,null,null,null,null,null,null,null,null,null,null,null,null,null,null,null,null,null,null,null,null,"`",null,null,null,null,null,null,"C3E"]
[null,10,"Distribution of Student Learning Time (SLT)",null,null,null,null,null,null,null,null,null,null,null,null,null,null,null,null,null,null,null,null,null,null,null,null,null,null,null,null,null,null,null,"C3F"]
[null,null,"Note: This SLT calculation is designed for home grown programme only.",null,null,null,null,null,null,null,null,null,null,null,null,null,null,null,null,null,null,null,null,null,null,null,null,null,null,null,null,null,null,null,"C4A"]
[null,null,null,null,null,null,null,null,null,null,null,null,null,null,null,null,null,null,null,null,null,null,null,null,null,null,null,null,null,null,null,null,null,null,"C4B"]
[null,null,null,"Course Content Outline and Subtopics",null,null,null,null,null,null,"CLO*",null,"Learning and Teaching Activities**",null,null,null,null,null,null,null,null,null,null,"Total SLT",null,null,null,null,null,null,null,null,null,null,"C5"]
[null,null,null,null,null,null,null,null,null,null,null,null,"Face-to-Face (F2F)",null,null,null,null,null,null,null,"NF2F\nIndependent Learning\n(Asynchronous)"]
[null,null,null,null,null,null,null,null,null,null,null,null,"Physical",null,null,null,"Online/ Technology-mediated (Synchronous)"]
[null,null,null,null,null,null,null,null,null,null,null,null,"L","T","P","O","L","T","P","O"]
[null,null,null,1,"Introduction to Research\n- Criteria of good Research\n- Objectives of Research\n- Types of Research\n- Factors Affecting Research\n",null,null,null,null,null,"CLO1",null,2,1,null,null,null,null,null,null,4.5]
[null,null,null,2,"Research Process\n- Steps in Research process\n",null,null,null,null,null,"CLO1, CLO2",null,2,1,null,null,null,null,null,null,4.5]
[null,null,null,3,"Research Design\n- Meaning of Research Design\n- Characteristics of a Good Research Design\n- Function of a Good Design\n- Research Design Concepts\n- Classification of Research Designs\n",null,null,null,null,null,"CLO1, CLO2",null,2,1,null,null,null,null,null,null,4.5]
[null,null,null,4,"Measurement Concepts in Research\n- Identifying and Deciding on the Variables to Be Measured\n- Research Measurement Issues\n- Measurement Scales\n- Criteria for Good Measurement\n- Reliability\n- Validity\n- Practicality\n- Sensitivity\n- Generalizability\n- Relevance\n- Errors in Measurement\n",null,null,null,null,null,"CLO1, CLO2",null,2,1,null,null,null,null,null,null,4.5]
[null,null,null,5,"Measurement of Attitude\n- Components of Attitude\n- Relationship between Attitude and Behavior\n- Attitude Scales\n- Types of Attitude Scales\n",null,null,null,null,null,"CLO2, CLO3",null,2,1,null,null,null,null,null,null,4.5]
[null,null,null,6,"Sampling Design\n- Basic Definitions and Concepts\n- Sampling Designs\n- Steps in a Sampling Process\n- Criteria for Selecting an Appropriate Sampling Design\n- Sampling Errors\n",null,null,null,null,null,"CLO2",null,2,1,null,null,null,null,null,null,4.5]
[null,null,null,7,"Secondary Data\n- Classification of Secondary Data\n- Scrutiny of Secondary Data\n- Advantages and Disadvantages of Secondary Data",null,null,null,null,null,"CLO2",null,2,1,null,null,null,null,null,null,4.5]
[null,null,null,8,"Survey Research\n- Concept and Meaning of Survey Resarch\n- Classifying Survey Research Methods\n- Survey Methods\n- Steps in Conduction of Survey\n- Difficulties and Issues of Survey Research\n",null,null,null,null,null,"CLO2",null,2,1,null,null,null,null,null,null,4.5]
[null,null,null,9,"Questionnaire\n- Definition of Questionnaire Method\n- Construction of Questionnaire\n- Structured Questions\n- Unstructured Questions\n- Designing a Questionnaire\n- Questionnaire Administration\n- Advantages and Disadvantages of Questionnaire Method\n",null,null,null,null,null,"CLO2",null,2,1,null,null,null,null,null,null,4.5]
[null,null,null,10,"Qualitative Research\n- Rationale for Using Qualitative Method\n- Types of Qualitative Research\n- Comparison Between Qualitative and Quantitative Research\n- Qualitative Research Methods\n- Importance of Qualitative Research\n- Ethical Guidelines in Qualitative Research\n",null,null,null,null,null,"CLO2, CLO3",null,2,1,null,null,null,null,null,null,4.5]
[null,null,null,11,"Data preparation and Preliminary Analysis\n- Validating and Editing\n- Coding\n- Data Entry\n- Data Cleaning\n- Tabulating of Survey Results\n- Data Mining\n",null,null,null,null,null,"CLO2",null,2,1,null,null,null,null,null,null,4]
[null,null,null,12,"Concepts of Hypothesis Testing\n- Meaning of Hypothesis\n- Characteristics of Hypothesis\n- Formulation of Hypothesis\n- Forms of Hypothesis\n- Types of Hypothesis\n- Stages of Hypothesis Testing\n- Hypothesis Testing Procedure\n",null,null,null,null,null,"CLO2",null,2,1,null,null,null,null,null,null,4]
[null,null,null,13,"Research Reports\n- Classification of Research Reports\n- Research Reports Components\n- Written Presentation\n- Presentation of the Research Report\n",null,null,null,null,null,"CLO3",null,2,1,null,null,null,null,null,null,4]
[null,null,null,14,"Ethics in Research\n- Ethical Treatment of Respondents\n- Rights and Obligations of the Client\n- Right to Protection Against the Client Tactics\n",null,null,null,null,null,"CLO3",null,2,1,null,null,null,null,null,null,4]
[null,null,null,"SUB-TOTAL SLT: ",null,null,null,null,null,null,null,null,null,null,null,null,null,null,null,null,null,null,null,{"$f":"SUM(M60:P73)+SUM(Q60:T73)+SUM(U60:W73)","v":103}]
[null,null,null,"Continous Assessement",null,null,null,null,null,null,"%",null,"Face-to-Face (F2F)",null,null,null,null,null,null,null,"NF2F\nIndependent Learning for Assessment (Asynchronous)"]
[null,null,null,null,null,null,null,null,null,null,null,null,"Physical",null,null,null,"Online/ Technology-mediated (Synchronous)"]
[null,null,null,1,"Individual Assignment",null,null,null,null,null,80,null,null,null,null,null,null,null,null,null,15]
[null,null,null,2,"Oral Assessment",null,null,null,null,null,20,null,null,null,null,null,null,null,null,null,2]
[null,null,null,3]
[null,null,null,"SUB-TOTAL SLT: ",null,null,null,null,null,null,null,null,null,null,null,null,null,null,null,null,null,null,null,{"$f":"SUM(M77:W79)","v":17}]
[null,null,null,"Final Assessement",null,null,null,null,null,null,"%",null,"Face-to-Face (F2F)",null,null,null,null,null,null,null,"NF2F\nIndependent Learning for Assessment (Asynchronous)"]
[null,null,null,null,null,null,null,null,null,null,null,null,"Physical",null,null,null,"Online/ Technology-mediated (Synchronous)"]
[null,null,null,1," ",null,null,null,null,null," ",null," ",null,null,null,null,null,null,null," "]
[null,null,null,2]
[null,null,null,"SUB-TOTAL SLT: ",null,null,null,null,null,null,null,null,null,null,null,null,null,null,null,null,null,null,null,{"$f":"SUM(M83:W84)","v":0}]
[]
[null,null,null,"SLT for Assessment:",null,null,null,null,null,null,null,null,null,null,null,null,null,null,null,null,null,null,null,{"$f":"X80+X85","v":17}]
[null,null,null,"GRAND TOTAL SLT:",null,null,null,null,null,null,null,null,null,null,null,null,null,null,null,null,null,null,null,{"$f":"X87+X74","v":120}]
[null,null,null,"A","% SLT for F2F Physical Component: \n[Total F2F Physical /(Total F2F Physical + Total F2F Online + Total Independent Learning) x 100)]",null,null,null,null,null,null,null,null,null,null,null,null,null,null,null,null,null,null,{"$f":"IFERROR(((SUM(M60:P73)+SUM(M77:P79)+SUM(M83:P84))/X88)* 100,\"\")","v":35}]
[]
[null,null,null,"B","% SLT for Online & Independent Learning Component:\n[(Total F2F Online + Total Independent Learning) /( Total F2F Physical + Total F2F Online + Total Independent Learning) x 100]",null,null,null,null,null,null,null,null,null,null,null,null,null,null,null,null,null,null,{"$f":"IFERROR((SUM(Q60:W73)+SUM(Q77:W79) + SUM(Q83:W84))/X88 * 100,\"\")","v":65}]
[null,null,null,"C","% SLT for All Practical Component:\n[% F2F Physical Practical + % F2F Online Practical]",null,null,null,null,null,null,null,null,null,null,null,null,null,null,null,null,null,null,{"$f":"IFERROR(X93+X94,\"\")","v":0}]
[null,null,null,"C1","% SLT for F2F Physical Practical Component\n[Total F2F Physical Practical /( Total F2F Physical + Total F2F Online + Total Independent Learning)  x 100)]",null,null,null,null,null,null,null,null,null,null,null,null,null,null,null,null,null,null,{"$f":"IFERROR(SUM(O60:O73)/X88*100,\"\")","v":0}]
[null,null,null,"C2","% SLT for F2F Online Practical Component\n[Total F2F Online Practical / (Total F2F Physical + Total F2F Online + Total Independent Learning) x 100]",null,null,null,null,null,null,null,null,null,null,null,null,null,null,null,null,null,null,{"$f":"IFERROR(SUM(S60:S73)/X88 *100,\"\")","v":0}]
[null,null,null,null,null,null,null,null,null,null,null,null,null,null,null,null,null,null,null,null,null,null,null,null,null,{"$f":"IFERROR(X91+X93,\"\")","v":65}]
[null,null,null,"Please  tick (√) if this course is Industrial Training/ Clinical Placement/ Practicum using 50% of Effective Learning Time (ELT)"]
[null,null,null,"Note: "]
[null,null,null,"* Indicate the CLO based on the CLO's numbering in Item 8"]
[null,null,null,"** For ODL programme: Courses with mandatory practical requiremnets imposed by the programme standards or any related standards can be exempted from complying to the minimum 80% ODL delivery rule in the SLT."]
[]
[null,11,"Identify special requirement or resources to deliver the course (e.g., software, nursery, computer lab, simulation room etc)",null,null,null,null,null,null,null,"SPSS, AMOS, Business Technology Lab"]
[]
[null,12,"References (include required and further readings, and should be the most current)",null,null,null,null,null,null,null,"Research Methodology Techniques and Trends.  Umesh Kumar Bhayyalal Dubey, D. P. Kothari. 2022. CRC Press, Taylor & Francis Group. ISBN: 978-1-138-05398-4"]
[]
[null,13,"Other additional information (if applicable)",null,null,null,null,null,null,null,"The Essential Guide to Doing Your Research Project. 4thd edition, 2021. Zina O'Leary - The Australia and New Zealand School of Government."]
[]
[]
[null,null,"Note: Number of PLO indicated is purely for illustration purposes only and the number is subjected to the curriculum design."]

{"sheet":"SPS8310","index":6,"n_rows":115,"n_cols":35,"rows_kept":115,"cut":false,"hidden":false,"merged":[[8,1,10,1],[8,2,10,4],[8,6,8,27],[9,6,9,27],[10,6,10,27],[3,2,3,4],[3,5,3,27],[4,2,4,4],[4,5,4,27],[5,2,5,4],[5,5,5,27],[11,2,11,4],[11,5,11,7],[11,9,11,10],[11,12,11,27],[12,2,12,4],[12,5,12,7],[6,2,6,4],[6,5,6,11],[7,2,7,4],[7,5,7,27],[13,2,13,4],[13,5,13,27],[15,2,22,4],[15,5,15,6],[15,7,15,26],[16,5,16,6],[16,7,16,26],[17,5,17,6],[17,7,17,26],[18,5,18,6],[22,5,22,6],[22,7,22,26],[24,2,24,27],[26,3,27,4],[26,5,26,16],[26,17,27,21],[26,22,27,25],[18,7,18,26],[19,5,19,6],[19,7,19,26],[20,5,20,6],[20,7,20,26],[21,5,21,6],[21,7,21,26],[30,3,30,4],[30,17,30,21],[30,22,30,25],[31,3,31,4],[31,17,31,21],[31,22,31,25],[28,3,28,4],[28,17,28,21],[28,22,28,25],[29,3,29,4],[29,17,29,21],[29,22,29,25],[34,3,34,4],[34,17,34,21],[34,22,34,25],[35,3,35,4],[35,17,35,21],[35,22,35,25],[32,3,32,4],[32,17,32,21],[32,22,32,25],[33,3,33,4],[33,17,33,21],[33,22,33,25],[42,3,42,25],[44,2,44,7],[45,2,46,7],[45,9,45,25],[46,9,46,25],[47,9,47,25],[36,3,38,4],[36,17,36,21],[37,17,37,21],[38,17,38,21],[40,3,40,25],[41,3,41,25],[56,20,58,22],[57,12,57,15],[57,16,57,19],[59,4,59,9],[59,10,59,11],[59,20,59,22],[48,8,48,25],[49,8,50,8],[49,9,50,25],[52,2,52,27],[53,2,53,26],[55,3,58,9],[55,10,58,11],[55,12,55,22],[55,23,58,25],[56,12,56,19],[63,4,63,9],[63,10,63,11],[63,20,63,22],[63,23,63,25],[65,4,65,9],[65,10,65,11],[65,20,65,22],[65,23,65,25],[59,23,59,25],[60,4,60,9],[60,10,60,11],[60,20,60,22],[60,23,60,25],[62,4,62,9],[62,10,62,11],[62,20,62,22],[62,23,62,25],[64,4,64,9],[64,10,64,11],[64,20,64,22],[61,4,61,9],[61,10,61,11],[61,20,61,22],[68,4,68,9],[68,10,68,11],[68,20,68,22],[68,23,68,25],[69,4,69,9],[69,10,69,11],[69,20,69,22],[69,23,69,25],[66,4,66,9],[66,10,66,11],[66,20,66,22],[66,23,66,25],[67,4,67,9],[67,10,67,11],[67,20,67,22],[67,23,67,25],[72,4,72,9],[72,10,72,11],[72,20,72,22],[72,23,72,25],[73,4,73,9],[73,10,73,11],[73,20,73,22],[73,23,73,25],[70,4,70,9],[70,10,70,11],[70,20,70,22],[70,23,70,25],[71,4,71,9],[71,10,71,11],[71,20,71,22],[71,23,71,25],[75,3,75,22],[75,23,75,25],[76,3,77,9],[76,10,77,11],[76,12,76,19],[76,20,77,22],[77,12,77,15],[77,16,77,19],[74,4,74,9],[74,10,74,11],[74,20,74,22],[74,23,74,25],[78,4,78,9],[78,10,78,11],[78,12,78,15],[78,16,78,19],[78,20,78,22],[79,4,79,9],[79,10,79,11],[79,12,79,15],[79,16,79,19],[79,20,79,22],[80,4,80,9],[80,10,80,11],[80,12,80,15],[80,16,80,19],[80,20,80,22],[81,4,81,9],[81,10,81,11],[81,12,81,15],[81,16,81,19],[81,20,81,22],[83,23,83,25],[84,3,85,9],[84,10,85,11],[84,12,84,19],[84,20,85,22],[85,12,85,15],[85,16,85,19],[82,4,82,9],[82,10,82,11],[82,12,82,15],[82,16,82,19],[82,20,82,22],[83,3,83,22],[86,4,86,9],[86,10,86,11],[86,12,86,15],[86,16,86,19],[86,20,86,22],[87,4,87,9],[87,10,87,11],[87,12,87,15],[87,16,87,19],[87,20,87,22],[88,4,88,9],[88,10,88,11],[88,12,88,15],[88,16,88,19],[88,20,88,22],[89,4,89,9],[89,10,89,11],[89,12,89,15],[89,16,89,19],[89,20,89,22],[91,23,91,25],[93,3,93,22],[93,23,93,25],[94,3,94,22],[94,23,94,25],[95,3,96,3],[95,4,96,22],[95,23,96,25],[90,4,90,9],[90,10,90,11],[90,12,90,15],[90,16,90,19],[90,20,90,22],[91,3,91,22],[100,4,100,22],[100,23,100,25],[102,3,102,22],[102,23,102,25],[104,3,104,25],[105,3,105,25],[97,4,97,22],[97,23,97,25],[98,4,98,22],[98,23,98,25],[99,4,99,22],[99,23,99,25],[111,1,112,1],[111,2,112,9],[111,10,112,27],[114,2,114,27],[115,1,115,27],[106,3,106,22],[107,1,108,1],[107,2,108,9],[107,10,108,27],[109,1,110,1],[109,2,110,9],[109,10,110,27]]}
[]
[null,"Back To FORM @ TEMPLATE"]
[null,null,null,null,null,null,null,null,null,null,null,null,null,null,null,null,null,null,null,null,null,null,null,null,null,null,null,null,null,null,null,null,null,null,"√"]
[]
[null,1,"Course Name:",null,null,"Thesis",null,null,null,null,null,null,null,null,null,null,null,null,null,null,null,null,null,null,null,null,null,null,null,null,null,null,null,null,"Semester"]
[null,null,"Course Code:",null,null,"SPS8310",null,null,null,null,null,null,null,null,null,null,null,null,null,null,null,null,null,null,null,null,null,null,null,null,null,null,null,null,1]
[null,null,"Course Classification:",null,null,"Major (core) ",null,null,null,null,null,null,null,null,null,null,null,null,null,null,null,null,null,null,null,null,null,null,null,null,null,null,null,null,2]
[null,2,"Synopsis:",null,null,"Each student is required to complete a dissertation to meet the requirements to obtain a PhD through coursework. The relevant topic proposal should be submitted at the end of the third semester after getting approval from the proposed supervisor. The length of the dissertation is no more than 70,000 words excluding footnotes, quotations, appendices, tables and figures. This course ensures students to produce dissertations in the fields of business management, thinking, marketing and administration related to studies. This dissertation should be written based on the format found in the guidelines set by FCUC.",null,null,null,null,null,null,null,null,null,null,null,null,null,null,null,null,null,null,null,null,null,null,null,null,null,null,null,null,3]
[null,{"$f":"B8+1","v":3},"Name(s) of Academic Staff:",null,null,1,"Appointed Supervisors"]
[null,null,null,null,null,2,null,null,null,null,null,null,null,null,null,null,null,null,null,null,null,null,null,null,null,null,null,null,null,null,null,null,null,null,"Year Offered"]
[null,null,null,null,null,3,null,null,null,null,null,null,null,null,null,null,null,null,null,null,null,null,null,null,null,null,null,null,null,null,null,null,null,null,1]
[null,{"$f":"B9+1","v":4},"Semester and Year offered:",null,null,"Year Offered",null,null,1,"Semester",null,3,"Remarks:",null,null,null,null,null,null,null,null,null,null,null,null,null,null,null,null,null,null,null,null,null,2]
[null,{"$f":"B12+1","v":5},"Credit Value:",null,null," ",null,null,null,null,null,null,null,null,null,null,null,null,null,null,null,null,null,null,null,null,null,null,null,null,null,null,null,null,3]
[null,6,"Pre-requisite/ co-requisite (if any):",null,null,"RSC 8002",null,null,null,null,null,null,null,null,null,null,null,null,null,null,null,null,null,null,null,null,null,null,null,null,null,null,null,null,4]
[null,null,null,null,null,null,null,null,null,null,null,null,null,null,null,null,null,null,null,null,null,null,null,null,null,null,null,null,null,null,null,null,null,null,5]
[null,7,"Course Learning Outcomes (CLO)",null,null,"CLO1",null,"Display continuous learning commitment in producing a well written dissertation (C6, PLO1, PLO2, PLO3, PLO4, PLO5, PLO8)",null,null,null,null,null,null,null,null,null,null,null,null,null,null,null,null,null,null,null,null,null,null,null,null,null,null,6]
[null,null,null,null,null,"CLO2",null,"Use quantitative and qualitative approaches with analytical tools in presenting the study conducted (P7, PLO7)",null,null,null,null,null,null,null,null,null,null,null,null,null,null,null,null,null,null,null,null,null,null,null,null,null,null,7]
[null,null,null,null,null,"CLO3",null,"Demonstrate the synthesis of information in written and verbal communication. (C5, PLO6)",null,null,null,null,null,null,null,null,null,null,null,null,null,null,null,null,null,null,null,null,null,null,null,null,null,null,8]
[]
[null,null,null,null,null,null,null,null,null,null,null,null,null,null,null,null,null,null,null,null,null,null,null,null,null,null,null,null,null,null,null,null,null,null,"Compulsory"]
[null,null,null,null,null,null,null,null,null,null,null,null,null,null,null,null,null,null,null,null,null,null,null,null,null,null,null,null,null,null,null,null,null,null,"Major (core) "]
[null,null,null,null,null,null,null,null,null,null,null,null,null,null,null,null,null,null,null,null,null,null,null,null,null,null,null,null,null,null,null,null,null,null,"Minor"]
[null,null,null,null,null,null,null,null,null,null,null,null,null,null,null,null,null,null,null,null,null,null,null,null,null,null,null,null,null,null,null,null,null,null,"Elective (core) "]
[null,null,null,null,null,null,null,null,null,null,null,null,null,null,null,null,null,null,null,null,null,null,null,null,null,null,null,null,null,null,null,null,null,null,"Elective (open/free)"]
[null,8,"Mapping of the Course Learning Outcomes to the Programme Learning Outcomes, Teaching Methods and Assessment Methods"]
[]
[null,null,null,"Course Learning Outcomes",null,"Programme Learning Outcomes (PLO)",null,null,null,null,null,null,null,null,null,null,null,"Teaching Methods",null,null,null,null,"Assessment Methods"]
[null,null,null,null,null,"PLO 1","PLO 2","PLO 3","PLO 4","PLO 5","PLO 6","PLO 7","PLO 8"]
[null,null,null,{"$f":"IF(ISBLANK(F16),\"\",F16)","v":"CLO1"},null,"√","√","√","√","√",null,null,"√",null,null,null,null,"Supervisory guidance",null,null,null,null,"Thesis, presentation/viva voce,                   progress reports/log books"]
[null,null,null,{"$f":"IF(ISBLANK(F17),\"\",F17)","v":"CLO2"},null,null,null,null,null,null,null,"√",null,null,null,null,null,"Supervisory guidance",null,null,null,null,"Thesis, presentation"]
[null,null,null,"CLO3",null,null,null,null,null,null,"√",null,null,null,null,null,null,"Supervisory guidance",null,null,null,null,"Thesis, presentation"]
[null,null,null,""]
[null,null,null,""]
[null,null,null,""]
[null,null,null,""]
[null,null,null,""]
[null,null,null,"Mapping with MQF Cluster of Learning Outcomes",null,"C1","C2","C3A","C3F","C5",null,null,"C4A",null,null,null,null,null,null,null,null,null,null,null,null,null,null,null,null,null,null,null,null,null,"Cognitive skills  "]
[null,null,null,null,null,null,null,null,null,null,null,"C3D",null,null,null,null,null,null,null,null,null,null,null,null,null,null,null,null,null,null,null,null,null,null,"Interpersonal skills"]
[null,null,null,null,null,null,null,null,null,null,"C3C",null,null,null,null,null,null,null,null,null,null,null,null,null,null,null,null,null,null,null,null,null,null,null,"Communication Skills"]
[null,null,null,null,null,null,null,null,null,null,null,null,null,null,null,null,null,null,null,null,null,null,null,null,null,null,null,null,null,null,null,null,null,null,"Digital Skills"]
[null,null,null,"Indicate the primary causal link between the CLO and PLO by ticking  '√' in the appropriate box.",null,null,null,null,null,null,null,null,null,null,null,null,null,null,null,null,null,null,null,null,null,null,null,null,null,null,null,null,null,null,"Numeracy Skills"]
[null,null,null,"C1 = Knowledge & Understanding, C2 = Cognitive Skills, C3A = Practical Skills, C3B = Interpersonal Skills, C3C = Communication Skills, C3D = Digital Skills,",null,null,null,null,null,null,null,null,null,null,null,null,null,null,null,null,null,null,null,null,null,null,null,null,null,null,null,null,null,null,"Leadership, Autonomy and Responsibility"]
[null,null,null,"C3E = Numeracy Skills, C3F = Leadership, Autonomy & Responsibility, C4A = Personal Skills, C4B = Entrepreneurial Skills, C5 = Ethics & Professionalism",null,null,null,null,null,null,null,null,null,null,null,null,null,null,null,null,null,null,null,null,null,null,null,null,null,null,null,null,null,null,"Personal Skills"]
[null,null,null,null,null,null,null,null,null,null,null,null,null,null,null,null,null,null,null,null,null,null,null,null,null,null,null,null,null,null,null,null,null,null,"Entrepreneurial Skills"]
[null,9,"Transferable Skills (if applicable)",null,null,null,null,null,null,null,null,null,null,null,null,null,null,null,null,null,null,null,null,null,null,null,null,null,null,null,null,null,null,null,"Ethics and Professionalism"]
[null,null,"(Skills learned in the course of study which can be useful and utilized in other settings)",null,null,null,null,null,1,"Communication Skills",null,null,null,null,null,null,null,null,null,null,null,null,null,null,null,null,null,null,null,null,null,null,null,null,"C1"]
[null,null,null,null,null,null,null,null,2,"Digital Skills",null,null,null,null,null,null,null,null,null,null,null,null,null,null,null,null,null,null,null,null,null,null,null,null,"C2"]
[null,null,null,null,null,null,null,null,3,"Personal Skills",null,null,null,null,null,null,null,null,null,null,null,null,null,null,null,null,null,null,null,null,null,null,null,null,"C3A"]
[null,null,null,null,null,null,null,null,"Open-ended response (if any)",null,null,null,null,null,null,null,null,null,null,null,null,null,null,null,null,null,null,null,null,null,null,null,null,null,"C3B"]
[null,null,null,null,null,null,null,null,4,"1. Research Skills\n2. Analytical and Critical Skills\n3. Academic Writing Skills\n4. Project Management Skills\n",null,null,null,null,null,null,null,null,null,null,null,null,null,null,null,null,null,null,null,null,null,null,null,null,"C3C"]
[null,null,null,null,null,null,null,null,null,null,null,null,null,null,null,null,null,null,null,null,null,null,null,null,null,null,null,null,null,null,null,null,null,null,"C3D"]
[null,null,null,null,null,null,null,null,null,null,null,null,null,null,null,null,null,null,null,null,null,null,null,null,null,null,null,"`",null,null,null,null,null,null,"C3E"]
[null,10,"Distribution of Student Learning Time (SLT)",null,null,null,null,null,null,null,null,null,null,null,null,null,null,null,null,null,null,null,null,null,null,null,null,null,null,null,null,null,null,null,"C3F"]
[null,null,"Note: This SLT calculation is designed for home grown programme only.",null,null,null,null,null,null,null,null,null,null,null,null,null,null,null,null,null,null,null,null,null,null,null,null,null,null,null,null,null,null,null,"C4A"]
[null,null,null,null,null,null,null,null,null,null,null,null,null,null,null,null,null,null,null,null,null,null,null,null,null,null,null,null,null,null,null,null,null,null,"C4B"]
[null,null,null,"Course Content Outline and Subtopics",null,null,null,null,null,null,"CLO*",null,"Learning and Teaching Activities**",null,null,null,null,null,null,null,null,null,null,"Total SLT",null,null,null,null,null,null,null,null,null,null,"C5"]
[null,null,null,null,null,null,null,null,null,null,null,null,"Face-to-Face (F2F)",null,null,null,null,null,null,null,"NF2F\nIndependent Learning\n(Asynchronous)"]
[null,null,null,null,null,null,null,null,null,null,null,null,"Physical",null,null,null,"Online/ Technology-mediated (Synchronous)"]
[null,null,null,null,null,null,null,null,null,null,null,null,"L","T","P","O","L","T","P","O"]
[null,null,null,1,"Thesis preparation and writing",null,null,null,null,null,"CLO1"]
[null,null,null,2,"Data collection ad analysis",null,null,null,null,null,"CLO2"]
[null,null,null,3,"Presentation of research finding",null,null,null,null,null,"CLO3"]
[]
[]
[]
[]
[]
[]
[]
[null,null,null,9]
[null,null,null,10]
[null,null,null,11]
[null,null,null,12]
[null,null,null,13]
[null,null,null,14]
[null,null,null,"SUB-TOTAL SLT: ",null,null,null,null,null,null,null,null,null,null,null,null,null,null,null,null,null,null,null,{"$f":"SUM(M60:P73)+SUM(Q60:T73)+SUM(U60:W73)","v":0}]
[null,null,null,"Continous Assessement",null,null,null,null,null,null,"%",null,"Face-to-Face (F2F)",null,null,null,null,null,null,null,"NF2F\nIndependent Learning for Assessment (Asynchronous)"]
[null,null,null,null,null,null,null,null,null,null,null,null,"Physical",null,null,null,"Online/ Technology-mediated (Synchronous)"]
[null,null,null,1,"Thesis",null,null,null,null,null,60]
[null,null,null,2,"Presentation / Viva Voce",null,null,null,null,null,20]
[null,null,null,3,"Progress Reports / Log Books",null,null,null,null,null,20]
[null,null,null,4]
[null,null,null,5]
[null,null,null,"SUB-TOTAL SLT: ",null,null,null,null,null,null,null,null,null,null,null,null,null,null,null,null,null,null,null,{"$f":"SUM(M79:W83)","v":0}]
[null,null,null,"Final Assessement",null,null,null,null,null,null,"%",null,"Face-to-Face (F2F)",null,null,null,null,null,null,null,"NF2F\nIndependent Learning for Assessment (Asynchronous)"]
[null,null,null,null,null,null,null,null,null,null,null,null,"Physical",null,null,null,"Online/ Technology-mediated (Synchronous)"]
[null,null,null,1]
[null,null,null,2]
[null,null,null,3]
[null,null,null,4]
[null,null,null,5]
[null,null,null,"SUB-TOTAL SLT: ",null,null,null,null,null,null,null,null,null,null,null,null,null,null,null,null,null,null,null,{"$f":"SUM(M87:W91)","v":0}]
[]
[null,null,null,"SLT for Assessment:",null,null,null,null,null,null,null,null,null,null,null,null,null,null,null,null,null,null,null,{"$f":"X84+X92","v":0}]
[null,null,null,"GRAND TOTAL SLT:",null,null,null,null,null,null,null,null,null,null,null,null,null,null,null,null,null,null,null,{"$f":"X94+X76","v":0}]
[null,null,null,"A","% SLT for F2F Physical Component: \n[Total F2F Physical /(Total F2F Physical + Total F2F Online + Total Independent Learning) x 100)]",null,null,null,null,null,null,null,null,null,null,null,null,null,null,null,null,null,null,{"$f":"IFERROR(((SUM(M60:P75)+SUM(M79:P83)+SUM(M87:P91))/X95)* 100,\"\")","v":""}]
[]
[null,null,null,"B","% SLT for Online & Independent Learning Component:\n[(Total F2F Online + Total Independent Learning) /( Total F2F Physical + Total F2F Online + Total Independent Learning) x 100]",null,null,null,null,null,null,null,null,null,null,null,null,null,null,null,null,null,null,{"$f":"IFERROR((SUM(Q60:W75)+SUM(Q79:W83) + SUM(Q87:W91))/X95 * 100,\"\")","v":""}]
[null,null,null,"C","% SLT for All Practical Component:\n[% F2F Physical Practical + % F2F Online Practical]",null,null,null,null,null,null,null,null,null,null,null,null,null,null,null,null,null,null,{"$f":"IFERROR(X100+X101,\"\")","v":""}]
[null,null,null,"C1","% SLT for F2F Physical Practical Component\n[Total F2F Physical Practical /( Total F2F Physical + Total F2F Online + Total Independent Learning)  x 100)]",null,null,null,null,null,null,null,null,null,null,null,null,null,null,null,null,null,null,{"$f":"IFERROR(SUM(O60:O75)/X95*100,\"\")","v":""}]
[null,null,null,"C2","% SLT for F2F Online Practical Component\n[Total F2F Online Practical / (Total F2F Physical + Total F2F Online + Total Independent Learning) x 100]",null,null,null,null,null,null,null,null,null,null,null,null,null,null,null,null,null,null,{"$f":"IFERROR(SUM(S60:S75)/X95 *100,\"\")","v":""}]
[null,null,null,null,null,null,null,null,null,null,null,null,null,null,null,null,null,null,null,null,null,null,null,null,null,{"$f":"IFERROR(X98+X100,\"\")","v":""}]
[null,null,null,"Please  tick (√) if this course is Industrial Training/ Clinical Placement/ Practicum using 50% of Effective Learning Time (ELT)"]
[null,null,null,"Note: "]
[null,null,null,"* Indicate the CLO based on the CLO's numbering in Item 8"]
[null,null,null,"** For ODL programme: Courses with mandatory practical requiremnets imposed by the programme standards or any related standards can be exempted from complying to the minimum 80% ODL delivery rule in the SLT."]
[]
[null,11,"Identify special requirement or resources to deliver the course (e.g., software, nursery, computer lab, simulation room etc)",null,null,null,null,null,null,null,"None "]
[]
[null,12,"References (include required and further readings, and should be the most current)",null,null,null,null,null,null,null,"Carol Roberts,Laura Hyatt (2023), The Dissertation Journey, 3rd edition, Corwin Press.\n"]
[]
[null,13,"Other additional information (if applicable)"]
[]
[]
[null,null,"Note: Number of PLO indicated is purely for illustration purposes only and the number is subjected to the curriculum design."]